[Event "26th Hit Open-A 2022"]
[Site "Nova Gorica"]
[Date "2022.09.20"]
[Round "7.8"]
[White "Marn, Jan"]
[Black "Pavlovic, Milos"]
[Result "1-0"]
[ECO "E11"]
[WhiteElo "2307"]
[BlackElo "2468"]
[Annotator "TA"]
[PlyCount "109"]
[EventDate "2022.09.16"]
[EventType "swiss"]
[EventCountry "SLO"]
[SourceTitle "playchess.com"]
[Source "ChessBase"]
[SourceQuality "1"]
[TimeControl "5400+30"]

{[%evp 16,108,12,12,17,18,30,28,29,29,23,34,53,25,18,10,46,37,41,53,91,84,87,85,101,78,77,0,0,11,8,-34,0,-34,0,0,0,0,0,0,0,-14,-16,-30,0,-12,-8,-22,-22,-22,-21,-38,0,0,0,0,0,0,0,0,0,0,2,0,0,0,0,0,3,0,0,-47,0,0,0,0,0,0,0,0,13,21,93,14,567,655,545,406,29993,29994,29997,29998,29998,29999,29999]} 1. d4 {[%emt 0:00:03]} Nf6 {[%emt 0:00:23]} 2. c4 {[%emt 0:00:14]} e6 {[%emt 0:00:41]} 3. g3 {[%emt 0:00:09]} Bb4+ {[%emt 0:05:22]} 4. Bd2 {[%emt 0:00:24]} Be7 {[%emt 0:00:21]} 5. Bg2 {[%emt 0:00:19]} d5 {[%emt 0:00:07]} 6. Nf3 {[%emt 0:00:04]} O-O {[%emt 0:00:06]} 7. O-O {[%emt 0:00:04]} c6 {[%emt 0:00:44]} 8. Qc2 {[%emt 0:00:10]} Nbd7 {[%emt 0:00:13] is cutting edge theory.} 9. Rd1 {[%emt 0:00:08]} h6 {[%emt 0:01:34] CPLX 2.3. E11: Bogo-Indian.} 10. Bf4 {[%emt 0:14:16] BESTDEEP} Nh5 {[%emt 0:29:54] CPLX 2.5 12 (a7-a5) (=6)} 11. Bc1 {[%emt 0:00:18] BESTDEEP} Nhf6 {[%emt 0:00:17] Inhibits e4. CPLX 2.6. White has an edge.} 12. b3 {[%emt 0:03:56][%cal Bb2b3,Bb3c4,Bc4c5][%mdl 32] BESTDEEP} b6 {[%emt 0:06:45] BESTDEEP} 13. Bb2 {[%emt 0:01:05] [#] BESTDEEP} a5 $146 {[%emt 0:01:29] CPLX 2.1 19 (Rf8-e8) (=6)} ({Predecessor:} 13... Bb7 14. Nc3 Qc7 15. Rac1 Rac8 16. e4 dxe4 17. Nxe4 c5 18. Nxf6+ Nxf6 19. dxc5 Bxc5 20. Ne5 Bxg2 21. Kxg2 Qb7+ 22. f3 Rfd8 {0-1 (45) Cheparinov,I (2677)-Harikrishna,P (2752) Monzon 2016}) 14. Nc3 {[%emt 0:08:02] CPLX 2.1 28 (Nf3-e5) (=5)} Ba6 {[%emt 0:01:27] CPLX 2.2} 15. Nd2 {[%emt 0:00:10] BESTDEEP} b5 {[%emt 0:12:37] CPLX 2.3 36 (Ra8-c8) (=10)} 16. e4 {[%emt 0:01:21][%cal Re4d5] BESTDEEP} bxc4 {[%emt 0:00:35] CPLX 2.8 4 (Ra8-b8) (=9)} 17. bxc4 {[%emt 0:00:27] RECAPT} Nb6 {[%emt 0:00:49] CPLX 2.7 38 (d5xc4) (=12)} 18. c5 {[%emt 0:07:20] CPLX 2.7 7 (e4-e5) (=4)} Nc4 {[%emt 0:00:07] EASY} 19. Nxc4 {[%emt 0:00:07] CPLX 2.8 2 (e4-e5) (=3)} Bxc4 {[%emt 0:00:08] RECAPT} 20. Na4 {[%emt 0:00:10] CPLX 2.6 23 (e4-e5) (=5)} Nd7 {[%emt 0:02:13] Inhibits Nb6. CPLX 2.7 0 (Ra8-b8) (=9)} 21. Rab1 {[%emt 0:05:38] RELBLUND 77 (Bb2-c1) (=11)} (21. Bc1 $16) 21... Bxa2 $11 {[%emt 0:00:36] CPLX 2.6} 22. Ra1 {[%emt 0:01:30] CPLX 2.6} Bc4 {[%emt 0:00:06] EASY} 23. Bc3 {[%emt 0:00:21] CPLX 2.7 42 (Ra1-a3) (=12)} Bb5 {[%emt 0:06:42] CPLX 2.6 34 (d5xe4) (=10)} 24. Rdb1 {[%emt 0:06:37] CPLX 2.6 34 (e4-e5) (=13)} Qc7 {[%emt 0:16:24] CPLX 2.7 34 (d5xe4) (=11)} 25. Bd2 {[%emt 0:01:48] CPLX 2.9 0 (e4-e5) (=13)} dxe4 {[%emt 0:08:59] CPLX 2.9 0 (Qc7-a7) (=10)} 26. Bxe4 {[%emt 0:00:14] RECAPT} Bg5 {[%emt 0:00:32] Inhibits Bf4. CPLX 3.3 0 (Nd7-f6) (=10)} 27. Bxg5 {CPLX 3.5 0 (Na4-c3) (=11)} hxg5 {[%emt 0:00:02] RECAPT} 28. Bg2 {[%emt 0:15:02] CPLX 3.2 14 (Na4-c3) (=11)} Nf6 {[%emt 0:01:06] CPLX 3.1 0 (Bb5xa4) (=9)} 29. Nb6 {[%emt 0:01:37] CPLX 3.0 14 (Na4-c3) (=11)} Rad8 {[%emt 0:00:05] CPLX 3.3 30 (Ra8-a7) (=10)} 30. Qd2 {[%emt 0:00:49] CPLX 3.2 12 (Qc2-c3) (=12)} a4 {[%emt 0:00:26] CPLX 3.3 4 (Qc7-e7) (=10)} 31. Rb4 {[%emt 0:11:56] CPLX 3.3 14 (Qd2-e3) (=12)} g4 {[%emt 0:00:19] CPLX 3.3} 32. Nxa4 {[%emt 0:00:41] BESTDEEP} Ra8 {[%emt 0:00:23] CPLX 3.2} 33. Qb2 {[%emt 0:00:42] CPLX 3.6 17 (Qd2-c3) (=11)} Bxa4 {[%emt 0:03:40] CPLX 3.2 38 (Nf6-d5) (=10)} 34. Raxa4 {[%emt 0:00:26] RECAPT} Rxa4 {[%emt 0:00:05] RECAPT} 35. Rxa4 {[%emt 0:00:04] RECAPT} Rb8 {[%emt 0:00:31] CPLX 2.5} 36. Rb4 {[%emt 0:04:00] CPLX 2.9 0 (Qb2-a1) (=10)} Rxb4 {[%emt 0:00:05] CPLX 2.6} 37. Qxb4 {[%emt 0:00:03][%mdl 4096] Endgame KQB-KQN. RECAPT} Nd5 {[%emt 0:00:11] Prevents Qb6. CPLX 2.1} 38. Qb1 {[%emt 0:00:24] CPLX 2.5 0 (Qb4-e1) (=9)} Qa7 {[%emt 0:02:45] CPLX 2.2 2 (Qc7-a5) (=8)} 39. Qd1 {[%emt 0:00:52] CPLX 2.3 2 (h2-h4) (=9)} f5 {[%emt 0:00:01] CPLX 2.2} 40. h3 {[%emt 0:00:20] BESTDEEP} gxh3 {[%emt 0:00:13] EASY} 41. Bxh3 {[%emt 0:00:10] RECAPT} Qd7 {[%emt 0:00:16] CPLX 2.0 3 (Qa7-a2) (=8)} 42. Qe1 {[%emt 0:04:07] CPLX 2.0 3 (Bh3-f1) (=9)} Nc7 {[%emt 0:00:12] BESTDEEP} 43. g4 {[%emt 0:08:11] CPLX 2.0 47 (Bh3-f1) (=10)} (43. Bf1 $11) 43... g6 {[%emt 0:00:18] MISSDEEP-Nc7-b5 47 (Nc7-b5) (=9)} (43... Nb5 $1 $15 {should be considered.}) 44. Qe5 {[%emt 0:00:15] [#] Hoping for Qd6. EASY} Nb5 {[%emt 0:01:27] Inhibits Qd6. BESTDEEP} 45. Qf6 {[%emt 0:00:15] CPLX 2.8 0 (g4-g5) (=9)} Kh7 {[%emt 0:00:28] CPLX 3.5} 46. d5 {[%emt 0:06:00] BESTDEEP} cxd5 {[%emt 0:00:55] CPLX 3.7 0 (Qd7xd5) (=8)} 47. g5 {[%emt 0:00:23] CPLX 3.5 0 (Bh3-g2) (=9)} Na7 {[%emt 0:00:42] CPLX 3.0 13 (Nb5-c7) (=8)} 48. Qf8 {[%emt 0:00:27] And now Bf1 would win. BESTDEEP} Qg7 {[%emt 0:00:25] [#] RELBLUND 72 (d5-d4) (=10)} (48... d4 $11) 49. Qd6 {[%emt 0:00:05] MISSDEEP-Qf8-e8 79 (Qf8-e8) (=10)} (49. Qe8 $1 $16) 49... d4 $2 {[%emt 0:00:27][%mdl 8192] A mistake that costs the game. RELBLUND 400 (Na7-b5) (=19)} (49... Nb5 $1 $11 50. Qxe6 Nc7) 50. Bf1 $18 {[%emt 0:00:12] Threatens to win with Bc4. DEEPSTRONG=>BLUNDERREACT} Nc8 {[%emt 0:00:45] DEEPSTRONG} 51. Qxe6 {[%emt 0:00:09] EASY} Qc7 {[%emt 0:00:18] MISSDEEP-Qg7-e7 400 (Qg7-e7) (=28)} (51... Qe7 $18 52. Qf6 (52. Qxc8 Qxg5+ 53. Bg2 Qc1+ 54. Bf1 Qg5+ 55. Kh1 Qh4+ 56. Kg1 Qg5+ $11) 52... Qxf6 53. gxf6 Na7) 52. Bc4 {[%emt 0:00:43][%csl Gc4][%cal Re6g8] EASY. White mates.} Ne7 {[%emt 0:00:35] RELBLUND 3 (Qc7-d8) (=27)} 53. Qf7+ {[%emt 0:00:05] EASY} Kh8 {[%emt 0:00:01] LEGAL} 54. Qf8+ {[%emt 0:00:05] EASY} Kh7 {[%emt 0:00:02] RELBLUND 0 (Ne7-g8) (=26)} 55. Qh6# {[%emt 0:00:04] Weighted Error Value: White=0.11 (very precise) /Black=0.32} 1-0

[Event "26th Hit Open-A 2022"]
[Site "Nova Gorica"]
[Date "2022.09.20"]
[Round "7.9"]
[White "Ghazarian, Kirk"]
[Black "Sharan, Rao"]
[Result "1-0"]
[ECO "D35"]
[WhiteElo "2440"]
[BlackElo "2312"]
[Annotator "ChessBase"]
[PlyCount "133"]
[EventDate "2022.09.16"]
[EventType "swiss"]
[EventCountry "SLO"]
[SourceTitle "playchess.com"]
[Source "ChessBase"]
[SourceQuality "1"]
[TimeControl "5400+30"]

1. d4 {[%emt 0:04:53]} d5 {[%emt 0:00:06]} 2. c4 {[%emt 0:00:39]} e6 {[%emt 0:00:07]} 3. Nc3 {[%emt 0:01:04]} Nf6 {[%emt 0:00:05]} 4. cxd5 {[%emt 0:00:14]} exd5 {[%emt 0:00:05]} 5. Bg5 {[%emt 0:00:13]} Nbd7 {[%emt 0:00:38]} 6. e3 {[%emt 0:00:53]} c6 {[%emt 0:00:17]} 7. Bd3 {[%emt 0:00:18]} Be7 {[%emt 0:00:13]} 8. h3 {[%emt 0:00:36]} h6 {[%emt 0:19:08]} 9. Bf4 {[%emt 0:00:06]} Nf8 {[%emt 0:02:46]} 10. Nf3 {[%emt 0:00:40]} Ne6 {[%emt 0:01:45]} 11. Be5 {[%emt 0:01:32]} a6 {[%emt 0:03:39]} 12. O-O {[%emt 0:01:52]} O-O {[%emt 0:02:24]} 13. Qc2 {[%emt 0:01:12]} b6 {[%emt 0:08:49]} 14. Rad1 {[%emt 0:03:21]} Bb7 {[%emt 0:00:32]} 15. Bf5 {[%emt 0:05:15]} Ng5 {[%emt 0:08:41]} 16. Nh2 {[%emt 0:07:45]} Re8 {[%emt 0:03:40]} 17. f4 {[%emt 0:16:26]} Nge4 {[%emt 0:00:19]} 18. Nxe4 {[%emt 0:10:02]} dxe4 {[%emt 0:06:15]} 19. Bxe4 {[%emt 0:08:03]} Nxe4 {[%emt 0:01:29]} 20. Qxe4 {[%emt 0:00:03]} f6 {[%emt 0:00:11]} 21. Qg6 {[%emt 0:01:55]} Qd5 {[%emt 0:12:31]} 22. Ng4 {[%emt 0:06:06]} Kf8 {[%emt 0:00:02]} 23. e4 {[%emt 0:04:21]} Qxa2 {[%emt 0:05:02]} 24. d5 {[%emt 0:02:34]} cxd5 {[%emt 0:00:51]} 25. Nxf6 {[%emt 0:01:04]} Bc5+ {[%emt 0:04:44]} 26. Kh1 {[%emt 0:00:54]} Re7 {[%emt 0:00:25]} 27. Nxd5 {[%emt 0:01:23]} Bxd5 {[%emt 0:03:08]} 28. Rxd5 {[%emt 0:00:47]} Kg8 {[%emt 0:01:25]} 29. Rfd1 {[%emt 0:02:59]} Rf8 {[%emt 0:00:04]} 30. Rd8 {[%emt 0:03:41]} Qf7 {[%emt 0:01:33]} 31. Rxf8+ {[%emt 0:02:17]} Qxf8 {[%emt 0:00:02]} 32. Rd5 {[%emt 0:07:03]} a5 {[%emt 0:01:26]} 33. b3 {[%emt 0:00:07]} Bf2 {[%emt 0:04:56]} 34. Rd1 {[%emt 0:04:07]} Qc8 {[%emt 0:03:05]} 35. Qd6 {[%emt 0:00:43]} Qc2 {[%emt 0:00:31]} 36. Qd3 {[%emt 0:00:52]} Qxd3 {[%emt 0:01:29]} 37. Rxd3 {[%emt 0:00:01]} Kf7 {[%emt 0:00:05]} 38. g4 {[%emt 0:01:12]} Bc5 {[%emt 0:00:30]} 39. Kg2 {[%emt 0:00:17]} g5 {[%emt 0:01:30]} 40. Kf3 {[%emt 0:00:05]} Ke6 {[%emt 0:00:16]} 41. Rd5 {[%emt 0:00:38]} gxf4 {[%emt 0:00:02]} 42. Bxf4 {[%emt 0:00:02]} Rd7 {[%emt 0:01:58]} 43. Rxd7 {[%emt 0:00:28]} Kxd7 {[%emt 0:00:01]} 44. Bxh6 {[%emt 0:00:01]} b5 {[%emt 0:00:21]} 45. Ke2 {[%emt 0:01:59]} Ke6 {[%emt 0:00:00]} 46. Bg7 {[%emt 0:00:14]} Be7 {[%emt 0:00:54]} 47. Kd3 {[%emt 0:00:18]} Kf7 {[%emt 0:00:06]} 48. Bc3 {[%emt 0:01:32]} a4 {[%emt 0:00:01]} 49. bxa4 {[%emt 0:01:38]} bxa4 {[%emt 0:00:01]} 50. Bd2 {[%emt 0:00:31]} Ke6 {[%emt 0:01:05]} 51. Bf4 {[%emt 0:00:21]} Kf7 {[%emt 0:00:37]} 52. Bg3 {[%emt 0:00:35]} Ke6 {[%emt 0:01:28]} 53. Kc4 {[%emt 0:00:12]} Bf8 {[%emt 0:00:57]} 54. h4 {[%emt 0:00:36]} Kf6 {[%emt 0:00:01]} 55. Bf4 {[%emt 0:00:19]} a3 {[%emt 0:00:38]} 56. Kb3 {[%emt 0:00:03]} Bc5 {[%emt 0:00:08]} 57. h5 {[%emt 0:00:15]} Bf8 {[%emt 0:00:34]} 58. g5+ {[%emt 0:00:08]} Ke6 {[%emt 0:00:01]} 59. Ka2 {[%emt 0:00:20]} Bc5 {[%emt 0:00:27]} 60. Kb3 {[%emt 0:00:04]} Bf8 {[%emt 0:00:17]} 61. g6 {[%emt 0:00:28]} Kf6 {[%emt 0:00:12]} 62. Bc1 {[%emt 0:00:33]} Ke5 {[%emt 0:02:49]} 63. h6 {[%emt 0:00:24]} Kf6 {[%emt 0:00:54]} 64. g7 {[%emt 0:00:04]} Bxg7 {[%emt 0:00:03]} 65. hxg7 {[%emt 0:00:03]} Kxg7 {[%emt 0:00:04]} 66. Bxa3 {[%emt 0:00:13]} Kf6 {[%emt 0:00:01]} 67. Kc2 {[%emt 0:00:08]} 1-0

[Event "26th Hit Open-A 2022"]
[Site "Nova Gorica"]
[Date "2022.09.20"]
[Round "7.10"]
[White "Holtel, Jasper"]
[Black "Van Dael, Siem"]
[Result "1-0"]
[ECO "E60"]
[WhiteElo "2406"]
[BlackElo "2316"]
[Annotator "ChessBase"]
[PlyCount "59"]
[EventDate "2022.09.16"]
[EventType "swiss"]
[EventCountry "SLO"]
[SourceTitle "playchess.com"]
[Source "ChessBase"]
[SourceQuality "1"]
[TimeControl "5400+30"]

1. Nf3 {[%emt 0:01:16]} Nf6 {[%emt 0:00:05]} 2. g3 {[%emt 0:00:59]} g6 {[%emt 0:00:06]} 3. Bg2 {[%emt 0:00:14]} Bg7 {[%emt 0:00:06]} 4. d4 {[%emt 0:00:35]} d6 {[%emt 0:00:06]} 5. O-O {[%emt 0:00:52]} O-O {[%emt 0:00:09]} 6. c4 {[%emt 0:00:22]} Bf5 {[%emt 0:00:08]} 7. Nc3 {[%emt 0:00:49]} Ne4 {[%emt 0:00:06]} 8. Nh4 {[%emt 0:14:24]} Nxc3 {[%emt 0:00:08]} 9. bxc3 {[%emt 0:00:04]} Bc8 {[%emt 0:00:05]} 10. Ba3 {[%emt 0:05:46]} Nc6 {[%emt 0:03:18]} 11. c5 {[%emt 0:07:15]} e5 {[%emt 0:16:13]} 12. cxd6 {[%emt 0:09:01]} cxd6 {[%emt 0:00:06]} 13. dxe5 {[%emt 0:20:59]} Bxe5 {[%emt 0:00:09]} 14. Nf3 {[%emt 0:04:56]} Bxc3 {[%emt 0:01:11]} 15. Rc1 {[%emt 0:04:14]} Qa5 {[%emt 0:01:35]} 16. Qb3 {[%emt 0:04:45]} Bf6 {[%emt 0:04:17]} 17. Bxd6 {[%emt 0:00:36]} Rd8 {[%emt 0:02:23]} 18. Rfd1 {[%emt 0:00:37]} Qa6 {[%emt 0:03:06]} 19. e4 {[%emt 0:05:36]} Nd4 {[%emt 0:03:53]} 20. Nxd4 {[%emt 0:01:55]} Rxd6 {[%emt 0:00:06]} 21. Rc7 {[%emt 0:02:25]} Bd7 {[%emt 0:05:57]} 22. e5 {[%emt 0:02:03]} Bxe5 {[%emt 0:00:07]} 23. Bxb7 {[%emt 0:00:20]} Qa5 {[%emt 0:00:08]} 24. Rxd7 {[%emt 0:01:04]} Rxd7 {[%emt 0:00:17]} 25. Nc6 {[%emt 0:02:31]} Rad8 {[%emt 0:04:31]} 26. Nxa5 {[%emt 0:00:24]} Rxd1+ {[%emt 0:00:04]} 27. Kg2 {[%emt 0:00:11]} R8d3 {[%emt 0:04:55]} 28. Qc4 {[%emt 0:01:21]} Bd4 {[%emt 0:01:42]} 29. Nb3 {[%emt 0:00:39]} Rc3 {[%emt 0:04:44]} 30. Qe2 {[%emt 0:00:35]} 1-0

[Event "26th Hit Open-A 2022"]
[Site "Nova Gorica"]
[Date "2022.09.20"]
[Round "7.11"]
[White "Ronka, Erik"]
[Black "Schreiner, Peter"]
[Result "1/2-1/2"]
[ECO "C78"]
[WhiteElo "2248"]
[BlackElo "2405"]
[Annotator "ChessBase"]
[PlyCount "36"]
[EventDate "2022.09.16"]
[EventType "swiss"]
[EventCountry "SLO"]
[SourceTitle "playchess.com"]
[Source "ChessBase"]
[SourceQuality "1"]
[TimeControl "5400+30"]

1. e4 {[%emt 0:00:03]} e5 {[%emt 0:03:36]} 2. Nf3 {[%emt 0:00:10]} Nc6 {[%emt 0:00:06]} 3. Bb5 {[%emt 0:00:14]} a6 {[%emt 0:01:19]} 4. Ba4 {[%emt 0:00:06]} Nf6 {[%emt 0:00:08]} 5. O-O {[%emt 0:00:17]} b5 {[%emt 0:00:33]} 6. Bb3 {[%emt 0:00:06]} Bb7 {[%emt 0:00:04]} 7. Re1 {[%emt 0:00:51]} Bc5 {[%emt 0:01:37]} 8. c3 {[%emt 0:01:05]} d6 {[%emt 0:00:13]} 9. d4 {[%emt 0:00:22]} Bb6 {[%emt 0:00:20]} 10. a4 {[%emt 0:02:39]} O-O {[%emt 0:08:06]} 11. Bg5 {[%emt 0:02:56]} h6 {[%emt 0:03:14]} 12. Bh4 {[%emt 0:01:41]} Qe7 {[%emt 0:23:06]} 13. axb5 {[%emt 0:14:09]} axb5 {[%emt 0:00:37]} 14. Rxa8 {[%emt 0:00:21]} Rxa8 {[%emt 0:02:42]} 15. Na3 {[%emt 0:02:20]} Na5 {[%emt 0:10:16]} 16. Bc2 {[%emt 0:29:16]} b4 {[%emt 0:07:27]} 17. cxb4 {[%emt 0:08:58]} Nc6 {[%emt 0:00:12]} 18. Nc4 {[%emt 0:08:05]} Nxd4 {[%emt 0:08:04]} 1/2-1/2

[Event "26th Hit Open-A 2022"]
[Site "Nova Gorica"]
[Date "2022.09.20"]
[Round "7.12"]
[White "Lodici, Lorenzo"]
[Black "Zamar Kodelja, Jurij"]
[Result "1-0"]
[ECO "B31"]
[WhiteElo "2559"]
[BlackElo "2241"]
[Annotator "TA"]
[PlyCount "67"]
[EventDate "2022.09.16"]
[EventType "swiss"]
[EventCountry "SLO"]
[SourceTitle "playchess.com"]
[Source "ChessBase"]
[SourceQuality "1"]
[TimeControl "5400+30"]

{[%evp 9,67,-28,-20,-48,-41,-48,-46,-52,-44,-46,-40,-45,-31,-51,-42,-43,-41,-81,-80,-69,-14,-10,-10,-20,0,-39,-7,-33,-28,-45,-14,-7,0,0,0,0,0,-6,21,14,12,28,52,57,177,164,156,161,157,175,175,151,240,194,240,222,560,542,495,462]} 1. e4 {[%emt 0:00:03]} c5 {[%emt 0:00:48]} 2. Be2 {[%emt 0:00:21]} Nc6 {[%emt 0:01:36]} 3. f4 {[%emt 0:00:41]} d5 {[%emt 0:00:57]} 4. e5 {[%emt 0:00:48]} g6 {[%emt 0:00:08]} 5. Nf3 {[%emt 0:01:09]} Bg4 {[%emt 0:00:45] [#] CPLX 2.0 8 (Ng8-h6) (=8)} 6. Bb5 $146 {[%emt 0:06:19] CPLX 2.2 28 (0-0) (=28). B31: Sicilian: 2...Nc6 3 Bb5 g6.} ({Predecessor:} 6. O-O Bxf3 7. Bxf3 e6 8. c3 h5 9. d3 Nh6 10. Na3 Nf5 11. Nc2 Bh6 12. g3 {0-1 (44) Lopez Forn,M (2067)-Marques Taltavull,A (2148) Barcelona 2016}) 6... Qb6 {[%emt 0:02:04] BESTDEEP} 7. a4 {[%emt 0:01:54] CPLX 2.8 7 (Bb5xc6) (=18)} e6 {[%emt 0:01:02] CPLX 2.7 2 (Ng8-h6) (=3)} 8. Nc3 {[%emt 0:02:26] CPLX 2.7 6 (d2-d3) (=14). Black is slightly better.} a6 {[%emt 0:00:06] CPLX 2.8} 9. a5 {[%emt 0:00:05] CPLX 3.0 2 (h2-h3) (=11)} Qc7 {[%emt 0:00:04] CPLX 3.4} 10. Bxc6+ {[%emt 0:00:13] CPLX 3.1 5 (h2-h3) (=10)} Qxc6 {[%emt 0:00:05] RECAPT} 11. h3 {[%emt 0:01:18] CPLX 2.4 20 (0-0) (=11)} Bxf3 {[%emt 0:00:11] CPLX 2.6} 12. Qxf3 {[%emt 0:00:03] RECAPT} h5 {[%emt 0:00:14] MISS-Ng8-e7 2 (Ng8-e7) (=2)} 13. g3 {[%emt 0:01:20] CPLX 2.1 40 (0-0) (=14)} Ne7 {[%emt 0:00:55] EASY} 14. Ne2 {[%emt 0:03:57][%cal Bc3e2,Be2c1,Bc1b3][%mdl 32] CPLX 2.1 0 (d2-d3) (=12)} d4 {[%emt 0:02:36] RELBLUND 55 (Ne7-f5) (=7)} (14... Nf5 $15) 15. Qxc6+ $11 {[%emt 0:00:32] CPLX 2.4} Nxc6 {[%emt 0:00:04] RECAPT} 16. d3 $1 {[%emt 0:00:09] CPLX 2.0} Be7 {[%emt 0:00:17] CPLX 2.0 20 (Ra8-d8) (=7)} 17. Bd2 {[%emt 0:02:37] CPLX 2.0 39 (Ne2-g1) (=12)} Kd7 {[%emt 0:00:16] CPLX 2.0 32 (h5-h4) (=9)} 18. Nc1 {[%emt 0:01:13] CPLX 2.0 26 (0-0) (=13)} g5 {[%emt 0:00:15] BESTDEEP} 19. Nb3 {[%emt 0:01:10] CPLX 2.1 17 (f4xg5) (=14)} gxf4 {[%emt 0:04:12] CPLX 2.1 31 (Rh8-g8) (=10)} 20. gxf4 {[%emt 0:04:36] RECAPT} Rag8 {[%emt 0:00:26] CPLX 2.1 7 (Ra8-f8) (=10)} 21. Kf2 {[%emt 0:00:10][%cal Be1f2,Bf2f1,Bf1e2][%mdl 32] Inhibits Rg2+. CPLX 2.1} Bh4+ {[%emt 0:00:35] CPLX 2.3 0 (Rg8-f8) (=9)} 22. Kf1 {[%emt 0:00:07] CPLX 2.9} Be7 {[%emt 0:00:05] EASY} 23. Rg1 {[%emt 0:04:20] CPLX 2.1 6 (Kf1-f2) (=11)} Na7 {[%emt 0:06:24] CPLX 2.4 27 (Rg8xg1) (=10)} 24. Ke2 {[%emt 0:05:50] CPLX 2.3} Kc6 {[%emt 0:00:15] CPLX 2.5 0 (Kd7-c8) (=9)} 25. c3 {[%emt 0:01:43] BESTDEEP} dxc3 {[%emt 0:00:13] CPLX 3.0 24 (Kc6-b5) (=10)} 26. bxc3 {[%emt 0:00:08] RECAPT} f5 {[%emt 0:03:15] CPLX 2.7 120 (h5-h4) (=15)} ({Better is} 26... h4 $14) 27. c4 {[%emt 0:01:56] CPLX 2.8 13 (Bd2-e3) (=10)} h4 {[%emt 0:01:57] BESTDEEP} 28. Be3 {[%emt 0:04:45] White is more active. CPLX 3.0} Rg3 {[%emt 0:03:07] EASY} 29. Rxg3 {[%emt 0:01:52] CPLX 3.4} hxg3 {[%emt 0:00:07] RECAPT} 30. Rh1 {[%emt 0:00:03] BESTDEEP} b5 {[%emt 0:00:07] CPLX 2.9 89 (Rh8-g8) (=16)} (30... Rg8 $16 31. Rg1 g2) 31. axb6 $1 $18 {[%emt 0:00:06] CPLX 3.0=>BLUNDERREACT} Kxb6 {[%emt 0:00:04] RECAPT} 32. Rb1 {[%emt 0:01:00] [#] Hoping for Nxc5+. BESTDEEP} Rxh3 $2 {[%emt 0:01:15] MISSDEEP-Kb6-c7 338 (Kb6-c7) (=27)} (32... Kc6 $2 33. Na5+ Kd7 34. Rb7+ Ke8 35. Rxa7 $18) (32... Kc7 33. Bxc5 (33. Nxc5 Bxc5 34. Bxc5 Nc8 $18) 33... Nc6 34. Bxe7 Nxe7) 33. Nxc5+ {[%emt 0:00:11] EASY} Kc6 {[%emt 0:00:04] EASY} 34. Nxe6 {[%emt 0:00:58] Weighted Error Value: White=0.07 (flawless) /Black=0.33} 1-0

[Event "26th Hit Open-A 2022"]
[Site "Nova Gorica"]
[Date "2022.09.20"]
[Round "7.13"]
[White "Diermair, Andreas"]
[Black "Zubova, Mariya"]
[Result "1-0"]
[ECO "E90"]
[WhiteElo "2468"]
[BlackElo "2214"]
[Annotator "TA"]
[PlyCount "55"]
[EventDate "2022.09.16"]
[EventType "swiss"]
[EventCountry "SLO"]
[SourceTitle "playchess.com"]
[Source "ChessBase"]
[SourceQuality "1"]
[TimeControl "5400+30"]

{[%evp 10,55,56,54,76,10,24,14,45,51,188,77,177,183,184,167,178,168,183,166,216,207,212,201,226,199,215,229,254,225,388,394,374,290,511,316,311,302,395,383,322,269,425,434,421,411,418,417]} 1. c4 {[%emt 0:00:05]} g6 {[%emt 0:00:14]} 2. e4 {[%emt 0:01:58]} Bg7 {[%emt 0:00:27]} 3. d4 {[%emt 0:00:11][%cal Bd2d4,Bd4e5,Be5e6][%mdl 32]} c6 {[%emt 0:01:49]} 4. Nc3 {[%emt 0:00:54]} d6 {[%emt 0:00:08]} 5. Nf3 {[%emt 0:03:01]} Nf6 {[%emt 0:00:09]} 6. Be2 {[%emt 0:00:07] CPLX 2.0 2 (Bc1-g5) (=2)} Nbd7 {[%emt 0:00:20] CPLX 2.0 22 (0-0) (=22). E90: King's Indian: Classical: Early deviations and 6 h3.} 7. e5 {[%emt 0:05:24] RELBLUND 66 (Bc1-e3) (=34)} ({White should play} 7. Be3 $16) 7... dxe5 $11 {[%emt 0:08:02] CPLX 2.6} 8. dxe5 {[%emt 0:00:08] RECAPT} Ng4 {[%emt 0:01:24] CPLX 2.4 31 (Nf6-g8) (=18). The position is equal.} 9. e6 $1 {[%emt 0:00:46] CPLX 2.5} Nde5 {[%emt 0:02:15] White now steadily converts the win. RELBLUND 137 (f7xe6) (=48)} (9... fxe6 $14 10. Ng5 Bxc3+ 11. bxc3 Ngf6) 10. Qxd8+ $18 {[%emt 0:02:51] CPLX 4.1} Kxd8 {[%emt 0:00:05] [#] LEGAL} 11. Nxe5 $1 {[%emt 0:03:13] DEEPSTRONG} Nxe5 {[%emt 0:01:47] RECAPT} 12. f4 {[%emt 0:00:12] EASY} Bxe6 {[%emt 0:02:26] CPLX 2.3} 13. fxe5 {[%emt 0:00:04] EASY} Bxe5 {[%emt 0:00:02] RECAPT} 14. Be3 {[%emt 0:00:15] CPLX 2.1} f5 {[%emt 0:01:18] CPLX 2.3 50 (Kd8-c7) (=27)} (14... Kc7 $142 15. Rc1 Rhd8) 15. O-O-O+ {[%emt 0:03:01] BESTDEEP} Kc7 {[%emt 0:00:03] CPLX 2.3} 16. g3 {[%emt 0:00:37] [#] CPLX 2.6} Rhe8 $146 {[%emt 0:02:46] CPLX 2.5 25 (Be6-f7) (=24)} ({Predecessor:} 16... b6 17. Bf4 Bxf4+ 18. gxf4 Rhd8 19. b3 Bd7 20. Bf3 Re8 21. Rhe1 e5 22. Rxe5 Rxe5 23. fxe5 {1-0 (43) Mueller,L (1972)-Reinemann,G (1813) Berlin 2012}) 17. Rd2 {[%emt 0:05:08] CPLX 2.5 27 (Rh1-e1) (=8)} b6 {[%emt 0:01:46] BESTDEEP} 18. Re1 {[%emt 0:02:37] BESTDEEP} Bf7 {[%emt 0:00:38] MISSDEEP-Be5-d6 25 (Be5-d6) (=22)} 19. c5 {[%emt 0:12:02] BESTDEEP} Bf6 $2 {[%emt 0:02:55] CPLX 3.1 163 (Ra8-d8) (=32)} (19... Rad8 {was necessary.} 20. cxb6+ axb6) 20. Red1 {[%emt 0:01:24] CPLX 3.1} Be6 {[%emt 0:01:01] Prevents Rd7+. CPLX 4.1} 21. Ba6 {[%emt 0:07:15] [#] Threatening mate with Bf4+. CPLX 4.1 84 (Be2-f3) (=11)} bxc5 $2 {[%emt 0:00:17] CPLX 4.2 221 (g6-g5) (=42)} (21... g5 {was called for.} 22. a4 h5) 22. Na4 {[%emt 0:01:14][%cal Bc3a4,Ba4c5,Bc5a6][%mdl 32] Intending Bf4+ and mate. CPLX 4.2 195 (Be3-f4) (=22)} Bd5 {[%emt 0:00:55] CPLX 4.2} 23. Nxc5 {[%emt 0:01:14] EASY} e5 {[%emt 0:03:33] CPLX 3.7 93 (Ra8-d8) (=43)} 24. Rc2 {[%emt 0:05:18][%cal Od1d5] aiming for Rxd5! CPLX 3.8} Rad8 {[%emt 0:06:33] CPLX 3.8 0 (Re8-d8) (=40)} 25. Bc4 {[%emt 0:04:34] Strongly threatening Bxd5. CPLX 3.6 53 (b2-b4) (=21)} Kb8 {[%emt 0:02:03] CPLX 3.2 156 (Bf6-e7) (=46)} (25... Be7 {might work better.} 26. Bb5 Bxc5 27. Rxc5 Rf8) 26. Bxd5 {[%emt 0:01:56] BESTDEEP} cxd5 {[%emt 0:00:04] RECAPT} 27. Na6+ {[%emt 0:00:17] EASY} Kb7 {[%emt 0:00:18] EASY} 28. Nc7 {[%emt 0:00:19] Weighted Error Value: White=0.29 (precise) /Black=0.59} 1-0